fUSD/lending_fUSD_20250112
["ID","MTS","AMOUNT","RATE_DAILY","PERIOD"]
[348647452,1736698242727,-501.03606325,9.799e-05,2]
[348647453,1736698242736,-500.0,9.799e-05,2]
[348647454,1736698242745,-314.66541612,9.799e-05,2]
[348647455,1736698242754,-150.0,9.799e-05,2]
[348647456,1736698242764,-500.0,9.799e-05,2]
[348647457,1736698242773,-500.0,9.799e-05,2]
[348647458,1736698242782,-500.0,9.799e-05,2]
[348647459,1736698242791,-500.0,9.799e-05,2]
[348647460,1736698242801,-501.43254005,9.799e-05,2]
[348647461,1736698242810,-500.0,9.799e-05,2]
[348647462,1736698242819,-500.0,9.799e-05,2]
[348647463,1736698242829,-500.0,9.799e-05,2]
[348647464,1736698242838,-450.68893015,9.799e-05,2]
[348647466,1736698242848,-500.0,9.799e-05,2]
[348647467,1736698242857,-500.0,9.799e-05,2]
[348647468,1736698242866,-500.0,9.799e-05,2]
[348647469,1736698242875,-1225.39,9.799e-05,2]
[348647470,1736698242884,-500.0,9.799e-05,2]
[348647471,1736698242894,-500.0,9.799e-05,2]
[348647472,1736698242903,-500.0,9.799e-05,2]
[348647473,1736698242912,-500.0,9.799e-05,2]
[348647474,1736698242921,-565.92,9.799e-05,2]
[348647475,1736698242931,-500.0,9.799e-05,2]
[348647476,1736698242940,-949.43,9.799e-05,2]
[348647477,1736698242949,-680.43,9.799e-05,2]
[348647478,1736698242958,-500.0,9.799e-05,2]
[348647479,1736698242968,-500.0,9.799e-05,2]
[348647480,1736698242977,-500.0,9.799e-05,2]
[348647481,1736698242986,-500.0,9.799e-05,2]
[348647482,1736698242995,-500.0,9.799e-05,2]
[348647483,1736698243005,-500.0,9.799e-05,2]
[348647484,1736698243014,-500.0,9.799e-05,2]
[348647485,1736698243024,-500.0,9.799e-05,2]
[348647486,1736698243033,-500.0,9.799e-05,2]
[348647487,1736698243042,-500.0,9.799e-05,2]
[348647488,1736698243052,-500.0,9.799e-05,2]
[348647489,1736698243061,-500.0,9.799e-05,2]
[348647490,1736698243071,-500.0,9.799e-05,2]
[348647491,1736698243080,-836.62,9.799e-05,2]
[348647492,1736698243089,-1224.04,9.799e-05,2]
[348647494,1736698243098,-500.0,9.799e-05,2]
[348647496,1736698243107,-500.0,9.799e-05,2]
[348647498,1736698243116,-670.04,9.799e-05,2]
[348647499,1736698243125,-500.0,9.799e-05,2]
[348647500,1736698243135,-966.69,9.799e-05,2]
[348647501,1736698243144,-769.16,9.799e-05,2]
[348647502,1736698243153,-1278.83,9.799e-05,2]
[348647503,1736698243163,-500.0,9.799e-05,2]
[348647504,1736698243172,-500.0,9.799e-05,2]
[348647505,1736698243181,-500.0,9.799e-05,2]
[348647506,1736698243190,-500.0,9.799e-05,2]
[348647507,1736698243199,-500.0,9.799e-05,2]
[348647508,1736698243209,-500.0,9.799e-05,2]
[348647509,1736698243218,-500.0,9.799e-05,2]
[348647510,1736698243227,-1772.47,9.799e-05,2]
[348647511,1736698243236,-500.0,9.799e-05,2]
[348647512,1736698243245,-500.0,9.799e-05,2]
[348647513,1736698243254,-500.0,9.799e-05,2]
[348647514,1736698243263,-622.86,9.799e-05,2]
[348647515,1736698243272,-500.0,9.799e-05,2]
[348647516,1736698243282,-1258.1,9.799e-05,2]
[348647517,1736698243291,-500.0,9.799e-05,2]
[348647518,1736698243300,-500.0,9.799e-05,2]
[348647519,1736698243309,-500.0,9.799e-05,2]
[348647520,1736698243318,-677.55,9.799e-05,2]
[348647521,1736698243327,-500.0,9.799e-05,2]
[348647522,1736698243336,-3775.72,9.799e-05,2]
[348647523,1736698243346,-587.48,9.799e-05,2]
[348647524,1736698243355,-541.11,9.799e-05,2]
[348647525,1736698243364,-779.09,9.799e-05,2]
[348647526,1736698243373,-2872.41,9.799e-05,2]
[348647527,1736698243384,-500.0,9.799e-05,2]
[348647528,1736698243393,-785.75,9.799e-05,2]
[348647529,1736698243403,-1364.9,9.799e-05,2]
[348647530,1736698243412,-540.47,9.799e-05,2]
[348647531,1736698243421,-508.1,9.799e-05,2]
[348647532,1736698243430,-751.84,9.799e-05,2]
[348647534,1736698243439,-500.0,9.799e-05,2]
[348647535,1736698243449,-500.0,9.799e-05,2]
[348647536,1736698243458,-1078.66,9.799e-05,2]
[348647537,1736698243467,-500.0,9.799e-05,2]
[348647538,1736698243476,-1085.63,9.799e-05,2]
[348647539,1736698243486,-537.07687228,9.844e-05,2]
[348647540,1736698243495,-156.99762,9.861e-05,2]
[348647541,1736698243505,-1143.03,9.861e-05,2]
[348647542,1736698243514,-1189.15,9.861e-05,2]
[348647543,1736698243523,-1400.67,9.861e-05,2]
[348647544,1736698243532,-1064.24,9.861e-05,2]
[348647545,1736698243542,-2470.06,9.861e-05,2]
[348647546,1736698243551,-504.28232769,9.862e-05,2]
[348647547,1736698243560,-502.83592766,9.862e-05,2]
[348647548,1736698243570,-503.28203279,9.862e-05,2]
[348647549,1736698243580,-505.37403492,9.862e-05,2]
[348647550,1736698243589,-504.20882357,9.862e-05,2]
[348647551,1736698243598,-500.0,9.862e-05,2]
[348647552,1736698243607,-500.0,9.862e-05,2]
[348647553,1736698243617,-500.0,9.862e-05,2]
[348647554,1736698243627,-500.0,9.862e-05,2]
[348647555,1736698243636,-500.0,9.862e-05,2]
[348647556,1736698243646,-500.0,9.862e-05,2]
[348647557,1736698243655,-500.50081359,9.862e-05,2]
[348647558,1736698243664,-500.0,9.862e-05,2]
[348647559,1736698243673,-500.0,9.862e-05,2]
[348647560,1736698243682,-428.50060398,9.862e-05,2]
[348647561,1736698243692,-500.0,9.862e-05,2]
[348647562,1736698243702,-500.0,9.862e-05,2]
[348647563,1736698243711,-500.5193836,9.862e-05,2]
[348647564,1736698243720,-500.37579392,9.862e-05,2]
[348647565,1736698243730,-500.0,9.862e-05,2]
[348647566,1736698243739,-500.87344152,9.862e-05,2]
[348647567,1736698243749,-500.0,9.862e-05,2]
[348647568,1736698243758,-500.31619265,9.862e-05,2]
[348647569,1736698243768,-500.0,9.862e-05,2]
[348647570,1736698243777,-500.0,9.862e-05,2]
[348647571,1736698243787,-500.0,9.862e-05,2]
[348647572,1736698243796,-500.0,9.862e-05,2]
[348647573,1736698243805,-500.0,9.862e-05,2]
[348647574,1736698243814,-500.0,9.862e-05,2]
[348647575,1736698243823,-500.0,9.862e-05,2]
[348647576,1736698243833,-500.0,9.862e-05,2]
[348647577,1736698243842,-500.28201551,9.862e-05,2]
[348647578,1736698243852,-500.0,9.862e-05,2]
[348647579,1736698243861,-500.0,9.862e-05,2]
[348647580,1736698243871,-500.0,9.862e-05,2]
[348647581,1736698243880,-500.89810852,9.862e-05,2]
[348647582,1736698243890,-300.0,9.862e-05,2]
[348647583,1736698243899,-501.6106011,9.862e-05,2]
[348647584,1736698243909,-500.0,9.862e-05,2]
[348647585,1736698243919,-501.37146177,9.862e-05,2]
[348647586,1736698243928,-500.0,9.862e-05,2]
[348647587,1736698243938,-500.0,9.862e-05,2]
[348647588,1736698243947,-500.0,9.862e-05,2]
[348647589,1736698243956,-450.01817902,9.862e-05,2]
[348647590,1736698243965,-500.0,9.862e-05,2]
[348647591,1736698243974,-500.0,9.862e-05,2]
[348647592,1736698243985,-500.0,9.862e-05,2]
[348647593,1736698243995,-500.80476426,9.862e-05,2]
[348647594,1736698244004,-500.0,9.862e-05,2]
[348647595,1736698244013,-500.0,9.862e-05,2]
[348647596,1736698244023,-501.08170471,9.862e-05,2]
[348647597,1736698244032,-500.0,9.862e-05,2]
[348647598,1736698244042,-500.74895673,9.862e-05,2]
[348647599,1736698244052,-365.44447977,9.862e-05,2]
[348647600,1736698244062,-500.0,9.862e-05,2]
[348647601,1736698244071,-500.0,9.862e-05,2]
[348647602,1736698244080,-1000.0,9.862e-05,2]
[348647603,1736698244090,-500.89069354,9.862e-05,2]
[348647604,1736698244099,-500.0,9.862e-05,2]
[348647605,1736698244109,-500.0,9.862e-05,2]
[348647606,1736698244118,-500.0,9.862e-05,2]
[348647607,1736698244127,-803.79,9.863e-05,2]
[348647608,1736698244137,-573.03,9.863e-05,2]
[348647609,1736698244146,-803.75,9.863e-05,2]
[348647610,1736698244156,-546.86,9.863e-05,2]
[348647611,1736698244165,-818.41,9.863e-05,2]
[348647612,1736698244174,-1323.72,9.863e-05,2]
[348647613,1736698244184,-1217.4,9.863e-05,2]
[348647614,1736698244194,-2076.84,9.863e-05,2]
[348647615,1736698244204,-4908.8,9.863e-05,2]
[348647616,1736698244213,-883.49,9.863e-05,2]
[348647617,1736698244223,-610.05,9.863e-05,2]
[348647618,1736698244232,-650.83,9.863e-05,2]
[348647619,1736698244241,-1685.23,9.863e-05,2]
[348647620,1736698244250,-500.0,9.863e-05,2]
[348647621,1736698244259,-500.0,9.863e-05,2]
[348647622,1736698244268,-1985.75,9.863e-05,2]
[348647623,1736698244277,-718.65,9.863e-05,2]
[348647624,1736698244288,-1042.88,9.863e-05,2]
[348647625,1736698244297,-1379.44,9.863e-05,2]
[348647626,1736698244307,-500.0,9.863e-05,2]
[348647627,1736698244317,-500.0,9.863e-05,2]
[348647628,1736698244329,-1000.0,9.863e-05,2]
[348647629,1736698244339,-822.3,9.863e-05,2]
[348647630,1736698244349,-500.0,9.863e-05,2]
[348647631,1736698244358,-501.77,9.929e-05,2]
[348647632,1736698244368,-500.0,9.963e-05,2]
[348647633,1736698244379,-832.24,9.963e-05,2]
[348647634,1736698244389,-558.76,9.963e-05,2]
[348647635,1736698244398,-828.37,9.963e-05,2]
[348647636,1736698244409,-500.0,9.963e-05,2]
[348647637,1736698244419,-920.15,9.963e-05,2]
[348647638,1736698244429,-500.0,9.963e-05,2]
[348647639,1736698244438,-559.93,9.963e-05,2]
[348647640,1736698244447,-500.0,9.963e-05,2]
[348647641,1736698244456,-500.0,9.963e-05,2]
[348647642,1736698244466,-679.82,9.963e-05,2]
[348647643,1736698244475,-500.0,9.963e-05,2]
[348647644,1736698244484,-500.0,9.963e-05,2]
[348647645,1736698244494,-500.0,9.963e-05,2]
[348647646,1736698244504,-500.0,9.963e-05,2]
[348647647,1736698244515,-500.0,9.963e-05,2]
[348647648,1736698244525,-200.82351209,9.967e-05,2]
[348647649,1736698244535,-4963.37064118,9.97e-05,2]
[348647650,1736698244545,-3511.55845189,9.971e-05,2]
[348647651,1736698244555,-500.0,9.973e-05,2]
[348647652,1736698244564,-8658.63873737,9.973e-05,2]
[348647653,1736698244575,-11860.33612573,9.974e-05,2]
[348647654,1736698244585,-247220.85194068,9.975e-05,2]
[348647655,1736698244594,-247220.85194068,9.975e-05,2]
[348647656,1736698244603,-220424.98457051,9.976e-05,2]
[348647657,1736698244612,-421.13780025,9.976e-05,2]
[348647658,1736698244622,-8658.63873737,9.976e-05,2]
[348647659,1736698244633,-247220.85194068,9.977e-05,2]
[348647660,1736698244642,-247220.85194068,9.977e-05,2]
[348647661,1736698244652,-220424.98457051,9.978e-05,2]
[348647662,1736698244662,-4963.37064118,9.978e-05,2]
[348647663,1736698244672,-47546.38719982,9.978e-05,2]
[348647664,1736698244681,-47546.38719982,9.978e-05,2]
[348647665,1736698244690,-47546.38719982,9.979e-05,2]
[348647666,1736698244700,-8658.63873737,9.979e-05,2]
[348647667,1736698244709,-4963.37064118,9.981e-05,2]
[348647668,1736698244719,-200.0,9.981e-05,2]
[348647669,1736698244729,-421.13780025,9.981e-05,2]
[348647670,1736698244739,-421.13780025,9.984e-05,2]
[348647671,1736698244748,-4963.37064118,9.984e-05,2]
[348647672,1736698244758,-3511.55845189,9.985e-05,2]
[348647673,1736698244767,-421.13780025,9.985e-05,2]
[348647674,1736698244778,-4963.37064118,9.987e-05,2]
[348647675,1736698244787,-11860.33612573,9.987e-05,2]
[348647676,1736698244797,-11860.33612573,9.987e-05,2]
[348647677,1736698244806,-3511.55845189,9.987e-05,2]
[348647678,1736698244815,-8658.63873737,9.988e-05,2]
[348647679,1736698244825,-4963.37064118,9.988e-05,2]
[348647680,1736698244835,-220424.98457051,9.989e-05,2]
[348647681,1736698244844,-47546.38719982,9.989e-05,2]
[348647682,1736698244853,-3511.55845189,9.989e-05,2]
[348647683,1736698244862,-11860.33612573,9.989e-05,2]
[348647684,1736698244872,-247220.85194068,9.989e-05,2]
[348647685,1736698244881,-200.0,9.989e-05,2]
[348647686,1736698244891,-47546.38719982,9.99e-05,2]
[348647687,1736698244901,-8658.63873737,9.99e-05,2]
[348647688,1736698244910,-47546.38719982,9.991e-05,2]
[348647689,1736698244920,-3511.55845189,9.992e-05,2]
[348647690,1736698244929,-8658.63873737,9.993e-05,2]
[348647691,1736698244938,-421.13780025,9.993e-05,2]
[348647692,1736698244948,-220424.98457051,9.994e-05,2]
[348647693,1736698244957,-220424.98457051,9.994e-05,2]
[348647694,1736698244967,-3511.55845189,9.995e-05,2]
[348647695,1736698244977,-11860.33612573,9.995e-05,2]
[348647696,1736698244986,-200.0,9.997e-05,2]
[348647697,1736698244996,-220424.98457051,9.998e-05,2]
[348647698,1736698245006,-11860.33612573,9.998e-05,2]
[348647699,1736698245015,-500.0,9.998e-05,2]
[348647700,1736698245025,-247220.85194068,9.999e-05,2]
[348647701,1736698245035,-500.0,9.999e-05,2]
[348647702,1736698245045,-894.03,9.999e-05,2]
[348647703,1736698245055,-2129.69,9.999e-05,2]
[348647704,1736698245065,-945.51,9.999e-05,2]
[348647705,1736698245075,-751.46,9.999e-05,2]
[348647706,1736698245084,-761.1,9.999e-05,2]
[348647707,1736698245093,-500.0,9.999e-05,2]
[348647708,1736698245103,-8295.56767936,9.999e-05,2]
[348647709,1736698245113,-189.1733391,9.999e-05,2]
[348647710,1736698245123,-500.0,9.999e-05,2]
[348647711,1736698245132,-421.13780025,9.999e-05,2]
[348647712,1736698245142,-256.42,0.0001,2]
[348647713,1736698245151,-446.49645518,0.0001,2]
[348647714,1736698245162,-171.73,0.0001,2]
[348647715,1736698245172,-500.0,0.0001,2]
[348647716,1736698245182,-255.7,0.0001,2]
[348647717,1736698245191,-200.82351233,0.0001,2]
[348647718,1736698245201,-200.82351209,0.0001,2]
[348647719,1736698245210,-200.82351209,0.0001,2]
[348647720,1736698245219,-1000.0,0.00010042,2]
[348647721,1736698245228,-360.06,0.00010051,2]
[348647722,1736698245237,-500.0,0.00010071,2]
[348647723,1736698245248,-1590.69,0.00010071,2]
[348647724,1736698245257,-2660.24,0.00010071,2]
[348647725,1736698245266,-1655.31,0.00010071,2]
[348647726,1736698245276,-500.0,0.00010071,2]
[348647727,1736698245285,-1031.3,0.00010071,2]
[348647728,1736698245294,-931.8,0.00010071,2]
[348647729,1736698245303,-2429.75,0.00010071,2]
[348647730,1736698245313,-773.96,0.00010071,2]
[348647731,1736698245322,-500.0,0.00010071,2]
[348647732,1736698245336,-960.5,0.00010071,2]
[348647733,1736698245346,-1143.84,0.00010071,2]
[348647734,1736698245354,-500.0,0.00010071,2]
[348647735,1736698245363,-500.0,0.00010071,2]
[348647736,1736698245372,-1522.49,0.00010071,2]
[348647737,1736698245383,-965.77,0.00010071,2]
[348647738,1736698245392,-500.0,0.00010071,2]
[348647739,1736698245402,-839.28,0.00010071,2]
[348647740,1736698245411,-698.56,0.00010071,2]
[348647741,1736698245421,-711.53,0.00010071,2]
[348647742,1736698245429,-500.0,0.00010072,2]
[348647743,1736698245438,-500.0,0.00010072,2]
[348647744,1736698245448,-845.28,0.00010072,2]
[348647745,1736698245457,-500.0,0.00010072,2]
[348647746,1736698245466,-660.73,0.00010072,2]
[348647747,1736698245476,-500.0,0.00010072,2]
[348647748,1736698245485,-500.0,0.00010072,2]
[348647749,1736698245494,-500.0,0.00010072,2]
[348647750,1736698245504,-702.4,0.00010072,2]
[348647751,1736698245514,-500.0,0.00010072,2]
[348647752,1736698245523,-500.0,0.00010072,2]
[348647753,1736698245532,-500.0,0.00010072,2]
[348647754,1736698245541,-500.0,0.00010072,2]
[348647755,1736698245551,-500.0,0.00010072,2]
[348647756,1736698245560,-871.11,0.00010072,2]
[348647757,1736698245569,-500.0,0.00010072,2]
[348647758,1736698245579,-500.0,0.00010072,2]
[348647759,1736698245589,-548.82,0.00010072,2]
[348647760,1736698245598,-722.29,0.00010072,2]
[348647761,1736698245607,-665.64,0.00010072,2]
[348647762,1736698245617,-500.0,0.00010072,2]
[348647763,1736698245626,-307.4025816,0.00010072,2]
[348647764,1736698245637,-500.0,0.00010072,2]
[348647765,1736698245646,-500.0,0.00010072,2]
[348647766,1736698245656,-500.0,0.00010072,2]
[348647767,1736698245665,-500.0,0.00010072,2]
[348647768,1736698245674,-500.0,0.00010072,2]
[348647769,1736698245684,-500.0,0.00010072,2]
[348647770,1736698245694,-500.0,0.00010072,2]
[348647771,1736698245703,-500.0,0.00010072,2]
[348647772,1736698245716,-500.0,0.00010072,2]
[348647773,1736698245725,-500.0,0.00010072,2]
[348647775,1736698245735,-500.0,0.00010072,2]
[348647777,1736698245744,-561.61,0.00010072,2]
[348647778,1736698245755,-500.0,0.00010072,2]
[348647779,1736698245764,-500.0,0.00010072,2]
[348647780,1736698245773,-500.0,0.00010072,2]
[348647781,1736698245783,-500.0,0.00010072,2]
[348647783,1736698245792,-702.99,0.00010072,2]
[348647785,1736698245801,-668.97,0.00010072,2]
[348647786,1736698245810,-651.02,0.00010072,2]
[348647787,1736698245820,-407.54397642,0.00010072,2]
[348647788,1736698245831,-1343.35,0.00010072,2]
[348647789,1736698245841,-500.0,0.00010072,2]
[348647790,1736698245851,-500.0,0.00010072,2]
[348647791,1736698245861,-211.64581508,0.00010072,2]
[348647792,1736698245870,-500.0,0.00010072,2]
[348647793,1736698245880,-500.0,0.00010072,2]
[348647795,1736698245889,-500.0,0.00010072,2]
[348647796,1736698245898,-500.0,0.00010072,2]
[348647798,1736698245908,-500.0,0.00010072,2]
[348647799,1736698245918,-500.0,0.00010072,2]
[348647800,1736698245928,-500.0,0.00010072,2]
[348647801,1736698245937,-500.0,0.00010072,2]
[348647802,1736698245947,-500.0,0.00010072,2]
[348647804,1736698245956,-500.0,0.00010072,2]
[348647806,1736698245965,-500.0,0.00010072,2]
[348647808,1736698245974,-604.55,0.00010072,2]
[348647809,1736698245983,-824.32,0.00010072,2]
[348647810,1736698245993,-500.0,0.00010072,2]
[348647811,1736698246002,-500.0,0.00010072,2]
[348647812,1736698246011,-500.0,0.00010072,2]
[348647813,1736698246020,-572.61,0.00010072,2]
[348647814,1736698246029,-500.0,0.00010072,2]
[348647815,1736698246038,-500.0,0.00010072,2]
[348647816,1736698246048,-500.0,0.00010072,2]
[348647817,1736698246057,-737.79,0.00010072,2]
[348647818,1736698246066,-2030.34,0.00010072,2]
[348647819,1736698246076,-778.33,0.00010072,2]
[348647820,1736698246087,-674.75,0.00010072,2]
[348647821,1736698246096,-500.0,0.00010072,2]
[348647822,1736698246105,-627.29,0.00010072,2]
[348647823,1736698246114,-2555.28,0.00010072,2]
[348647824,1736698246123,-500.0,0.00010072,2]
[348647825,1736698246132,-500.0,0.00010072,2]
[348647826,1736698246141,-500.0,0.00010072,2]
[348647827,1736698246151,-1099.8,0.00010072,2]
[348647828,1736698246160,-769.52,0.00010072,2]
[348647829,1736698246170,-500.0,0.00010072,2]
[348647830,1736698246179,-500.0,0.00010072,2]
[348647831,1736698246188,-500.0,0.00010072,2]
[348647832,1736698246197,-822.56,0.00010072,2]
[348647833,1736698246206,-500.0,0.00010072,2]
[348647834,1736698246215,-500.0,0.00010072,2]
[348647835,1736698246225,-500.0,0.00010072,2]
[348647836,1736698246234,-661.75,0.00010072,2]
[348647837,1736698246243,-568.57,0.00010072,2]
[348647838,1736698246252,-500.0,0.00010072,2]
[348647839,1736698246261,-500.0,0.00010072,2]
[348647840,1736698246271,-1321.1,0.00010072,2]
[348647841,1736698246280,-739.69,0.00010072,2]
[348647842,1736698246289,-500.0,0.00010072,2]
[348647843,1736698246298,-500.0,0.00010072,2]
[348647844,1736698246307,-500.0,0.00010072,2]
[348647845,1736698246316,-518.7491291,0.00010072,2]
[348647846,1736698246325,-712.08,0.00010072,2]
[348647847,1736698246337,-500.0,0.00010072,2]
[348647848,1736698246346,-500.0,0.00010072,2]
[348647849,1736698246355,-500.0,0.00010072,2]
[348647850,1736698246364,-500.0,0.00010072,2]
[348647851,1736698246373,-500.0,0.00010072,2]
[348647852,1736698246383,-1250.26,0.00010072,2]
[348647853,1736698246392,-520.917218,0.00010072,2]
[348647854,1736698246401,-500.0,0.00010072,2]
[348647855,1736698246410,-500.0,0.00010072,2]
[348647856,1736698246420,-720.34,0.00010072,2]
[348647857,1736698246429,-500.0,0.00010072,2]
[348647858,1736698246438,-500.0,0.00010072,2]
[348647859,1736698246447,-500.0,0.00010072,2]
[348647860,1736698246457,-500.0,0.00010072,2]
[348647861,1736698246466,-586.56,0.00010072,2]
[348647862,1736698246475,-1947.94,0.00010072,2]
[348647863,1736698246485,-500.0,0.00010072,2]
[348647864,1736698246494,-500.0,0.00010072,2]
[348647865,1736698246503,-500.0,0.00010072,2]
[348647866,1736698246513,-500.0,0.00010072,2]
[348647867,1736698246522,-874.09,0.00010072,2]
[348647868,1736698246531,-477.985251,0.00010072,2]
[348647870,1736698246541,-1912.02,0.00010072,2]
[348647872,1736698246744,-750.64,0.00010072,2]
[348647873,1736698246753,-500.0,0.00010072,2]
[348647874,1736698246763,-500.0,0.00010072,2]
[348647875,1736698246772,-500.0,0.00010072,2]
[348647876,1736698246782,-6413.91,0.00010072,2]
[348647877,1736698246791,-500.0,0.00010072,2]
[348647878,1736698246800,-574.46,0.00010072,2]
[348647879,1736698246809,-500.0,0.00010072,2]
[348647880,1736698246818,-500.0,0.00010072,2]
[348647881,1736698246828,-663.35,0.00010072,2]
[348647882,1736698246839,-500.0,0.00010072,2]
[348647883,1736698246848,-500.0,0.00010072,2]
[348647884,1736698246858,-500.0,0.00010072,2]
[348647885,1736698246867,-500.0,0.00010072,2]
[348647886,1736698246877,-707.41,0.00010072,2]
[348647887,1736698246886,-618.3,0.00010072,2]
[348647888,1736698246896,-261.23793804,0.00010072,2]
[348647889,1736698246905,-500.0,0.00010072,2]
[348647890,1736698246914,-500.0,0.00010072,2]
[348647891,1736698246924,-580.09,0.00010072,2]
[348647892,1736698246933,-500.0,0.00010072,2]
[348647893,1736698246943,-500.0,0.00010072,2]
[348647894,1736698246952,-3816.01,0.00010072,2]
[348647895,1736698246961,-763.36,0.00010072,2]
[348647896,1736698246971,-994.13,0.00010072,2]
[348647897,1736698246980,-500.0,0.00010072,2]
[348647898,1736698246990,-500.0,0.00010072,2]
[348647899,1736698246999,-817.51,0.00010072,2]
[348647900,1736698247009,-500.0,0.00010072,2]
[348647901,1736698247019,-500.0,0.00010072,2]
[348647902,1736698247028,-553.72,0.00010072,2]
[348647903,1736698247037,-506.19332457,0.00010072,2]
[348647904,1736698247047,-1800.29,0.00010072,2]
[348647905,1736698247056,-500.0,0.00010072,2]
[348647906,1736698247066,-500.0,0.00010072,2]
[348647907,1736698247075,-3410.99,0.00010072,2]
[348647908,1736698247086,-785.84,0.00010072,2]
[348647909,1736698247095,-500.0,0.00010072,2]
[348647910,1736698247105,-500.0,0.00010072,2]
[348647911,1736698247115,-500.0,0.00010072,2]
[348647912,1736698247124,-811.26,0.00010072,2]
[348647913,1736698247134,-544.71,0.00010072,2]
[348647914,1736698247143,-702.98,0.00010072,2]
[348647915,1736698247152,-500.0,0.00010072,2]
[348647916,1736698247162,-394.49609663,0.00010072,2]
[348647917,1736698247171,-2588.92,0.00010072,2]
[348647918,1736698247181,-500.0,0.00010072,2]
[348647919,1736698247190,-2758.27,0.00010072,2]
[348647920,1736698247200,-500.0,0.00010072,2]
[348647921,1736698247209,-500.0,0.00010072,2]
[348647922,1736698247219,-286.60378668,0.00010072,2]
[348647923,1736698247228,-500.0,0.00010072,2]
[348647924,1736698247237,-1069.66,0.00010072,2]
[348647925,1736698247247,-2968.94,0.00010072,2]
[348647926,1736698247256,-504.02455567,0.00010072,2]
[348647927,1736698247265,-724.64,0.00010072,2]
[348647928,1736698247274,-832.82,0.00010072,2]
[348647929,1736698247284,-500.0,0.00010072,2]
[348647930,1736698247293,-500.0,0.00010072,2]
[348647931,1736698247303,-549.09,0.00010072,2]
[348647932,1736698247312,-677.23,0.00010072,2]
[348647933,1736698247322,-697.25,0.00010072,2]
[348647934,1736698247338,-500.0,0.00010072,2]
[348647935,1736698247348,-500.0,0.00010072,2]
[348647936,1736698247357,-500.0,0.00010072,2]
[348647937,1736698247367,-500.0,0.00010072,2]
[348647938,1736698247377,-500.0,0.00010072,2]
[348647939,1736698247387,-500.0,0.00010072,2]
[348647940,1736698247396,-604.83,0.00010072,2]
[348647941,1736698247405,-500.0,0.00010072,2]
[348647942,1736698247417,-500.0,0.00010072,2]
[348647943,1736698247429,-1761.21,0.00010072,2]
[348647944,1736698247439,-500.0,0.00010072,2]
[348647945,1736698247449,-551.92,0.00010072,2]
[348647946,1736698247459,-500.0,0.00010072,2]
[348647947,1736698247468,-508.81106253,0.00010072,2]
[348647948,1736698247477,-701.02,0.00010072,2]
[348647949,1736698247487,-500.0,0.00010072,2]
[348647950,1736698247496,-1390.39,0.00010072,2]
[348647951,1736698247506,-534.93,0.00010072,2]
[348647952,1736698247515,-619.4,0.00010072,2]
[348647953,1736698247524,-154.41714291,0.00010072,2]
[348647954,1736698247534,-500.0,0.00010072,2]
[348647955,1736698247543,-1118.37,0.00010072,2]
[348647956,1736698247553,-667.23,0.00010072,2]
[348647957,1736698247562,-500.0,0.00010072,2]
[348647958,1736698247571,-539.66,0.00010072,2]
[348647959,1736698247581,-162.06830582,0.00010072,2]
[348647960,1736698247590,-500.0,0.00010072,2]
[348647961,1736698247599,-1432.73,0.00010072,2]
[348647962,1736698247608,-500.0,0.00010072,2]
[348647963,1736698247617,-899.38,0.00010072,2]
[348647964,1736698247627,-629.17,0.00010072,2]
[348647965,1736698247636,-500.0,0.00010072,2]
[348647966,1736698247645,-624.82,0.00010072,2]
[348647967,1736698247654,-500.0,0.00010072,2]